bitfinex/quotes_SOLUSD_20220210
["timestamp","ask_amount","ask_price","bid_price","bid_amount"]
[1644471706151,23.6331164,111.68,111.62,49.05039996]
[1644471706351,23.6331164,111.68,111.62,13.94339996]
[1644471706552,2.2512023,111.67,111.62,13.4412]
[1644471706750,2.2512023,111.67,111.61,13.4413]
[1644471706953,0.0382164,111.66,111.61,13.4413]
[1644471707153,1.31571938,111.67,111.61,13.4413]
[1644471707350,1.31571938,111.67,111.58,12.46]
[1644471707351,14.75701938,111.66,111.58,43.7960744]
[1644471707552,68.04281032,111.65,111.58,43.7960744]
[1644471707753,68.08102672,111.65,111.59,13.4435]
[1644471708355,81.52452672,111.65,111.56,12.46]
[1644471708553,1.31571938,111.64,111.55,57.2745]
[1644471708771,1.31571938,111.64,111.56,6.0]
[1644471708983,1.31571938,111.64,111.55,57.2745]
[1644471709177,1.56571938,111.64,111.55,57.2745]
[1644471709377,1.56571938,111.64,111.56,44.30594288]
[1644471709774,13.4459,111.63,111.57,13.4459]
[1644471710777,13.4459,111.63,111.57,13.6959]
[1644471716383,13.6959,111.63,111.57,13.6959]
[1644471719288,0.25,111.63,111.57,13.6959]
[1644471719486,13.4826164,111.64,111.57,13.6959]
[1644471719786,23.3058,111.63,111.57,13.6959]
[1644471720690,23.3440164,111.63,111.57,13.6959]
[1644471721689,23.5940164,111.63,111.57,13.6959]
[1644471722592,37.0392164,111.63,111.57,13.6959]
[1644471722789,37.001,111.63,111.57,13.6959]
[1644471726194,37.001,111.63,111.57,13.4459]
[1644471726598,37.001,111.63,111.56,13.447]
[1644471726798,37.0392164,111.63,111.56,13.447]
[1644471726999,37.0392164,111.63,111.56,0.25]
[1644471727201,37.0392164,111.63,111.55,6.0]
[1644471727702,37.0392164,111.63,111.54,59.6155241]
[1644471727902,38.31671938,111.63,111.54,59.6155241]
[1644471728302,37.0392164,111.63,111.54,59.6155241]
[1644471728503,38.31671938,111.63,111.54,59.6155241]
[1644471728803,38.31671938,111.63,111.55,13.4479]
[1644471731504,38.06671938,111.63,111.55,13.4479]
[1644471731703,38.06671938,111.63,111.55,13.6979]
[1644471733107,38.31671938,111.63,111.55,13.6979]
[1644471734304,38.31671938,111.63,111.55,13.4479]
[1644471734505,1.27750298,111.62,111.55,13.4479]
[1644471734706,51.59029511,111.61,111.55,13.4479]
[1644471736225,51.59029511,111.61,111.54,0.024]
[1644471736426,13.4515,111.58,111.53,0.024]
[1644471736626,13.4515,111.58,111.52,23.6597]
[1644471736827,48.48210513,111.57,111.52,23.6597]
[1644471737228,72.09480513,111.57,111.52,0.274]
[1644471737627,72.09480513,111.57,111.52,0.024]
[1644471738727,72.09480513,111.57,111.52,13.4755]
[1644471738928,72.34480513,111.57,111.52,13.4755]
[1644471739128,72.34480513,111.57,111.52,13.7255]
[1644471745738,48.73210513,111.57,111.52,13.7255]
[1644471747445,48.73210513,111.57,111.52,15.51906207]
[1644471749544,48.48210513,111.57,111.52,15.51906207]
[1644471752951,71.18830513,111.57,111.52,15.51906207]
[1644471753151,71.43830513,111.57,111.52,15.51906207]
[1644471757156,71.43830513,111.57,111.52,13.7255]
[1644471759757,1.27750298,111.59,111.52,13.7255]
[1644471759965,1.27750298,111.59,111.53,1.81756207]
[1644471760166,47.0416,111.6,111.54,25.9077]
[1644471760167,24.75950298,111.6,111.54,25.9077]
[1644471760368,23.482,111.6,111.54,27.72526207]
[1644471760667,23.482,111.6,111.54,27.97526207]
[1644471760869,23.482,111.6,111.55,38.8740026]
[1644471761067,23.482,111.6,111.56,13.4461]
[1644471763889,23.732,111.6,111.56,13.4461]
[1644471768798,23.732,111.6,111.56,13.6961]
[1644471769194,23.732,111.6,111.56,26.1561]
[1644471773199,23.732,111.6,111.56,13.6961]
[1644471774300,23.732,111.6,111.56,13.4461]
[1644471784013,23.482,111.6,111.56,13.4461]
[1644471784216,23.482,111.6,111.56,15.48966207]
[1644471787117,23.482,111.6,111.56,13.6961]
[1644471788822,22.732,111.6,111.56,13.6961]
[1644471793833,1.27750298,111.62,111.56,13.6961]
[1644471794034,23.89860298,111.62,111.56,13.6961]
[1644471795347,23.89860298,111.62,111.56,13.4461]
[1644471796650,23.89860298,111.62,111.56,13.6961]
[1644471797150,24.14860298,111.62,111.56,13.6961]
[1644471797749,23.89860298,111.62,111.56,13.6961]
[1644471797950,1.27750298,111.62,111.56,15.48966207]
[1644471798156,1.31571938,111.63,111.57,6.0]
[1644471798352,1.31571938,111.64,111.58,13.4407]
[1644471798551,1.27750298,111.64,111.59,22.9111]
[1644471798752,1.31571938,111.64,111.59,23.1611]
[1644471798955,1.27750298,111.64,111.59,23.1611]
[1644471799259,1.27750298,111.64,111.59,60.20515723]
[1644471799857,1.27750298,111.64,111.6,13.4409]
[1644471800054,39.80660977,111.65,111.6,13.4409]
[1644471800254,39.80660977,111.65,111.6,13.6909]
[1644471802156,40.05660977,111.65,111.6,13.6909]
[1644471804163,38.77910679,111.65,111.6,13.6909]
[1644471805563,38.77910679,111.65,111.6,13.4409]
[1644471805865,38.77910679,111.65,111.6,13.6909]
[1644471806164,0.2882164,111.65,111.6,13.6909]
[1644471806363,0.0382164,111.65,111.6,13.6909]
[1644471809371,0.0382164,111.65,111.6,13.4409]
[1644471809569,1.31571938,111.65,111.6,13.4409]
[1644471809967,1.56571938,111.65,111.6,13.4409]
[1644471810769,15.00821938,111.65,111.6,13.4409]
[1644471811570,1.56571938,111.65,111.6,13.4409]
[1644471814695,1.31571938,111.65,111.6,13.6909]
[1644471814893,0.0382164,111.65,111.6,13.6909]
[1644471816294,0.0382164,111.65,111.6,15.48446207]
[1644471816497,0.0382164,111.65,111.6,27.94446207]
[1644471816696,0.0382164,111.65,111.62,13.436]
[1644471816896,1.27750298,111.68,111.62,13.436]
[1644471817100,1.31571938,111.69,111.62,13.436]
[1644471817296,1.27750298,111.69,111.62,13.686]
[1644471817497,1.31571938,111.69,111.63,40.6936326]
[1644471817701,1.31571938,111.69,111.63,40.9436326]
[1644471817903,1.31571938,111.69,111.64,13.4357]
[1644471818300,1.56571938,111.69,111.64,13.6857]
[1644471818900,0.2882164,111.69,111.64,13.6857]
[1644471819201,0.0382164,111.69,111.64,13.6857]
[1644471819403,48.59039275,111.7,111.64,13.6857]
[1644471819703,1.56571938,111.7,111.64,13.6857]
[1644471821101,1.56571938,111.7,111.64,37.0183]
[1644471821503,1.31571938,111.7,111.64,37.0183]
[1644471821701,0.0382164,111.7,111.64,37.0183]
[1644471821901,91.81248856,111.71,111.64,37.0183]
[1644471823103,92.06248856,111.71,111.64,37.0183]
[1644471824007,1.27750298,111.7,111.64,37.0183]
[1644471824507,92.06248856,111.71,111.64,37.0183]
[1644471826510,48.89011938,111.71,111.64,37.0183]
[1644471827215,24.32391938,111.71,111.64,37.0183]
[1644471827418,1.31571938,111.71,111.65,18.46]
[1644471827620,1.27750298,111.73,111.66,13.4301]
[1644471827821,7.0,111.74,111.67,18.46]
[1644471828014,1.27750298,111.76,111.67,18.46]
[1644471828219,1.27750298,111.76,111.67,44.40856207]
[1644471828414,1.27750298,111.76,111.68,1.79356207]
[1644471828620,40.0948274,111.76,111.69,25.8863]
[1644471828923,40.0948274,111.76,111.7,43.96251744]
[1644471829117,41.62233038,111.76,111.7,43.96251744]
[1644471829617,41.37233038,111.76,111.7,43.96251744]
[1644471829819,41.37233038,111.76,111.7,44.21251744]
[1644471830217,41.37233038,111.76,111.7,43.96251744]
[1644471830819,41.37233038,111.76,111.7,57.39221744]
[1644471831018,41.62233038,111.76,111.7,57.39221744]
[1644471831421,41.62233038,111.76,111.7,13.4297]
[1644471833023,41.62233038,111.76,111.7,13.6797]
[1644471834224,41.62233038,111.76,111.7,13.4297]
[1644471834425,55.05283038,111.76,111.7,13.4297]
[1644471838429,54.80283038,111.76,111.7,52.98226642]
[1644471838628,40.0948274,111.76,111.7,53.23226642]
[1644471839730,40.0948274,111.76,111.7,13.6797]
[1644471840150,53.5249274,111.76,111.7,13.6797]
[1644471840553,4.388055,111.75,111.7,13.4297]
[1644471840754,39.2762001,111.74,111.7,13.4297]
[1644471842352,39.5262001,111.74,111.7,13.4297]
[1644471847662,11.849341,111.73,111.66,44.7712]
[1644471847862,1.30150298,111.73,111.62,24.4381]
[1644471848063,1.30150298,111.72,111.6,12.46]
[1644471848262,1.27750298,111.71,111.61,6.0]
[1644471848466,34.32993881,111.7,111.62,36.97083325]
[1644471848662,13.4628,111.69,111.62,36.97083325]
[1644471849063,13.4628,111.69,111.62,37.22083325]
[1644471849262,36.7923,111.69,111.62,37.22083325]
[1644471849862,23.3535,111.69,111.62,50.65973325]
[1644471850263,72.05848673,111.69,111.62,50.65973325]
[1644471851267,85.49688673,111.69,111.62,50.65973325]
[1644471851764,85.74688673,111.69,111.62,50.65973325]
[1644471853664,72.30848673,111.69,111.62,50.65973325]
[1644471854065,23.6035,111.69,111.62,50.65973325]
[1644471855268,41.696427,111.68,111.62,50.65973325]
[1644471855568,41.696427,111.68,111.62,50.40973325]
[1644471856768,41.696427,111.68,111.62,50.65973325]
[1644471857967,36.7918,111.69,111.62,50.65973325]
[1644471858971,71.15905042,111.69,111.62,50.65973325]
[1644471859170,71.40905042,111.69,111.62,50.65973325]
[1644471859370,71.40905042,111.69,111.62,50.40973325]
[1644471859570,71.40905042,111.69,111.62,36.97083325]
[1644471859771,72.6865534,111.69,111.62,36.97083325]
[1644471861875,71.40905042,111.69,111.62,36.97083325]
[1644471862072,72.6865534,111.69,111.62,36.97083325]
[1644471864175,72.6865534,111.69,111.61,13.4402]
[1644471864977,72.4365534,111.69,111.61,13.4402]
[1644471865175,72.4365534,111.69,111.61,48.41245162]
[1644471865375,71.15905042,111.69,111.61,48.41245162]
[1644471866179,57.72075042,111.69,111.61,48.41245162]
[1644471866602,23.3535,111.69,111.61,60.87245162]
[1644471866799,23.3535,111.69,111.62,6.0]
[1644471866999,23.3535,111.69,111.64,13.4352]
[1644471867602,23.3295,111.69,111.64,48.64992655]
[1644471867802,23.3535,111.69,111.64,48.64992655]
[1644471868704,23.6035,111.69,111.64,48.64992655]
[1644471868902,0.024,111.69,111.64,48.64992655]
[1644471869106,0.024,111.71,111.64,48.89992655]
[1644471869305,0.024,111.69,111.65,12.46]
[1644471869504,0.024,111.71,111.66,13.4324]
[1644471869702,0.024,111.72,111.67,43.30650836]
[1644471869905,48.06784501,111.73,111.67,43.30650836]
[1644471870111,0.024,111.72,111.67,43.55650836]
[1644471870303,48.31784501,111.73,111.67,43.55650836]
[1644471870503,0.024,111.72,111.67,43.55650836]
[1644471870704,48.31784501,111.73,111.68,13.4317]
[1644471870904,0.024,111.72,111.68,13.4317]
[1644471871104,48.29384501,111.73,111.68,13.4317]
[1644471871505,48.04384501,111.73,111.68,13.4317]
[1644471872705,48.29384501,111.73,111.68,13.4317]
[1644471875611,61.72714501,111.73,111.67,13.4333]
[1644471876010,1.27750298,111.72,111.67,13.4333]
[1644471876210,1.30150298,111.72,111.64,12.46]
[1644471876510,25.79640298,111.72,111.64,24.4536]
[1644471876710,45.65416811,111.71,111.65,35.8492994]
[1644471877214,45.90416811,111.71,111.65,36.0992994]
[1644471877717,45.90416811,111.71,111.66,13.4345]
[1644471878316,0.25,111.71,111.67,45.49722077]
[1644471878717,24.7689,111.72,111.67,45.74722077]
[1644471879721,24.7689,111.72,111.68,13.4322]
[1644471879917,24.7449,111.72,111.69,39.20035501]
[1644471880117,0.25,111.72,111.7,0.50219996]
[1644471880318,1.27750298,111.73,111.7,0.50219996]
[1644471880519,5.56219997,111.72,111.7,0.50219996]
[1644471880718,5.56219997,111.72,111.69,39.20035501]
[1644471881719,5.56219997,111.72,111.69,52.63175501]
[1644471882121,5.56219997,111.72,111.7,0.50219996]
[1644471883121,5.56219997,111.72,111.7,13.93229996]
[1644471883322,46.92950298,111.74,111.7,13.93229996]
[1644471883522,45.652,111.74,111.71,45.49722077]
[1644471883924,45.902,111.74,111.71,45.49722077]
[1644471884222,24.19120298,111.74,111.71,45.49722077]
[1644471884623,24.19120298,111.74,111.72,0.50219996]
[1644471884824,0.25,111.74,111.72,0.50219996]
[1644471885224,3.03219997,111.73,111.72,0.50219996]
[1644471885424,2.53,111.74,111.7,13.4301]
[1644471885624,3.80750298,111.74,111.7,13.4301]
[1644471886024,3.80750298,111.74,111.69,13.4312]
[1644471886427,3.80750298,111.74,111.69,49.05778455]
[1644471887225,2.53,111.74,111.69,49.05778455]
[1644471887628,2.78,111.74,111.69,49.05778455]
[1644471889831,45.06791871,111.74,111.69,49.05778455]
[1644471890237,46.34542169,111.74,111.69,49.05778455]
[1644471890831,45.06791871,111.74,111.69,49.05778455]
[1644471891031,46.34542169,111.74,111.69,49.05778455]
[1644471891232,4.05750298,111.74,111.69,49.05778455]
[1644471895266,1.27750298,111.73,111.69,49.05778455]
[1644471895468,1.52750298,111.74,111.69,49.05778455]
[1644471896468,1.27750298,111.73,111.69,49.05778455]
[1644471897670,49.54114954,111.73,111.69,49.05778455]
[1644471899670,1.27750298,111.73,111.69,49.05778455]
[1644471900371,1.27750298,111.72,111.69,49.05778455]
[1644471900781,1.27750298,111.72,111.7,0.50219996]
[1644471901175,1.27750298,111.73,111.7,13.93269996]
[1644471904175,1.52750298,111.73,111.7,13.93269996]
[1644471904473,5.56219997,111.72,111.7,13.93269996]
[1644471904674,5.56219997,111.72,111.7,13.4305]
[1644471905277,5.56219997,111.72,111.71,0.50219996]
[1644471905675,1.52750298,111.73,111.71,0.50219996]
[1644471908276,16.15900095,111.72,111.63,12.46]
[1644471908477,25.24270298,111.71,111.64,22.9207]
[1644471908677,1.27750298,111.69,111.64,22.9207]
[1644471908876,1.27750298,111.7,111.64,22.9207]
[1644471909079,36.64255972,111.68,111.64,22.9207]
[1644471909279,73.28511944,111.68,111.65,37.42382004]
[1644471909678,73.28511944,111.68,111.66,13.4351]
[1644471909878,73.28511944,111.68,111.67,40.39527865]
[1644471914083,76.31511944,111.68,111.67,40.39527865]
[1644471914285,79.34731941,111.68,111.66,13.4345]
[1644471914683,36.64255972,111.67,111.66,13.4345]
[1644471915083,73.28511944,111.67,111.66,13.4345]
[1644471915285,73.28511944,111.67,111.66,54.07932273]
[1644471916085,73.28511944,111.67,111.66,54.32932273]
[1644471917485,54.6139935,111.67,111.66,54.32932273]
[1644471917685,16.50259384,111.67,111.66,13.6845]
[1644471918287,9.384e-05,111.67,111.66,21.47234396]
[1644471918488,9.384e-05,111.67,111.66,33.93234396]
[1644471919089,9.384e-05,111.67,111.66,57.78564396]
[1644471920088,0.024,111.72,111.66,57.78564396]
[1644471920490,0.024,111.73,111.67,24.12246447]
[1644471920688,94.17431636,111.74,111.69,13.4289]
[1644471920888,94.15031636,111.74,111.69,13.4289]
[1644471921290,94.40031636,111.74,111.69,13.4289]
[1644471922293,49.12180298,111.74,111.69,13.4289]
[1644471922494,1.27750298,111.74,111.69,13.6789]
[1644471922893,1.27750298,111.74,111.69,15.46674396]
[1644471923094,1.30150298,111.75,111.69,15.46674396]
[1644471923293,1.27750298,111.75,111.69,19.25932966]
[1644471923494,1.30150298,111.75,111.69,19.25932966]
[1644471923696,1.55150298,111.75,111.69,19.25932966]
[1644471923894,1.55150298,111.75,111.69,17.4714857]
[1644471924902,1.30150298,111.75,111.7,12.46]
[1644471925103,1.27750298,111.75,111.71,13.425]
[1644471925299,1.27750298,111.76,111.71,27.92284396]
[1644471925499,1.30150298,111.76,111.71,51.15104396]
[1644471925698,1.27750298,111.77,111.72,7.78784396]
[1644471925900,1.27750298,111.78,111.72,44.37030843]
[1644471926099,1.30150298,111.78,111.72,44.62030843]
[1644471926318,1.55150298,111.78,111.72,44.62030843]
[1644471926719,1.55150298,111.78,111.73,13.4231]
[1644471926918,1.52750298,111.78,111.73,13.4231]
[1644471927121,1.52750298,111.78,111.73,13.6731]
[1644471927718,0.25,111.78,111.73,13.6731]
[1644471927919,1.30150298,111.79,111.73,13.6731]
[1644471928118,1.55150298,111.79,111.73,13.6731]
[1644471928718,1.55150298,111.79,111.73,13.4231]
[1644471928919,1.27750298,111.78,111.73,13.4231]
[1644471930424,0.024,111.79,111.73,13.4231]
[1644471930425,1.30150298,111.79,111.73,13.4231]
[1644471931027,45.0401232,111.78,111.73,13.4231]
[1644471931424,46.31762618,111.78,111.73,13.4231]
[1644471931624,7.113341,111.77,111.73,13.4231]
[1644471931827,46.31762618,111.78,111.73,13.4231]
[1644471931828,46.34162618,111.78,111.73,13.4231]
[1644471932128,46.31762618,111.78,111.73,13.4231]
[1644471932924,46.56762618,111.78,111.73,13.4231]
[1644471937730,1.27750298,111.77,111.73,13.4231]
[1644471938530,36.75734584,111.76,111.73,13.4231]
[1644471938730,6.06219997,111.75,111.73,13.4231]
[1644471941136,6.31219997,111.75,111.73,13.4231]
[1644471942436,6.06219997,111.75,111.73,13.4231]
[1644471945742,25.02980298,111.77,111.73,13.4231]
[1644471946040,25.00580298,111.77,111.73,13.4231]
[1644471946240,25.25580298,111.77,111.73,13.4231]
[1644471947046,1.52750298,111.77,111.73,13.4231]
[1644471947244,1.30150298,111.78,111.74,7.78686177]
[1644471947448,1.30150298,111.79,111.75,25.8838]
[1644471947646,1.27750298,111.79,111.75,27.67066177]
[1644471947847,1.27750298,111.79,111.75,27.92066177]
[1644471948047,1.27750298,111.79,111.75,26.1338]
[1644471948646,1.52750298,111.79,111.75,26.1338]
[1644471948851,1.52750298,111.79,111.75,25.8838]
[1644471949047,1.52750298,111.79,111.75,13.4238]
[1644471949247,1.52750298,111.79,111.73,13.4266]
[1644471949449,43.43081276,111.78,111.73,13.4266]
[1644471949846,1.27750298,111.78,111.73,13.4266]
[1644471950948,50.1041787,111.78,111.73,13.4266]
[1644471952576,1.27750298,111.77,111.72,13.4288]
[1644471952769,1.27750298,111.77,111.66,76.59218555]
[1644471952770,1.27750298,111.76,111.67,12.46]
[1644471952968,1.30150298,111.76,111.67,12.46]
[1644471953173,0.024,111.75,111.67,12.46]
[1644471953571,34.93719259,111.75,111.68,23.93152656]
[1644471953770,34.93719259,111.75,111.68,24.18152656]
[1644471953972,34.93719259,111.75,111.71,13.4299]
[1644471954174,34.91319259,111.75,111.71,13.4299]
[1644471954570,36.19069557,111.75,111.71,13.4299]
[1644471954771,36.19069557,111.75,111.68,0.25]
[1644471954971,36.21469557,111.75,111.68,0.25]
[1644471955172,36.21469557,111.75,111.7,13.4304]
[1644471955372,36.19069557,111.75,111.7,13.4304]
[1644471955973,1.27750298,111.75,111.7,13.4304]
[1644471956174,1.55150298,111.76,111.7,13.4304]
[1644471956373,13.13204698,111.75,111.7,13.4304]
[1644471956778,1.27750298,111.75,111.7,13.4304]
[1644471957176,48.46179201,111.74,111.7,13.4304]
[1644471959181,48.46179201,111.74,111.69,13.4314]
[1644471964585,48.71179201,111.74,111.69,13.4314]
[1644471976103,14.052096,111.73,111.65,57.259]
[1644471976303,1.27750298,111.73,111.66,6.0]
[1644471976803,1.27750298,111.73,111.65,0.024]
[1644471976804,42.66652591,111.72,111.65,6.024]
[1644471977704,56.10192591,111.72,111.65,19.4594]
[1644471979424,56.10192591,111.72,111.65,13.4594]
[1644471979627,56.10192591,111.72,111.65,0.024]
[1644471979628,57.37942889,111.72,111.65,0.024]
[1644471980025,24.92640298,111.71,111.65,0.024]
[1644471980228,13.4371,111.7,111.65,0.024]
[1644471980425,13.4371,111.7,111.64,13.4608]
[1644471980625,13.4371,111.7,111.64,35.87446211]
[1644471980826,48.41225906,111.7,111.64,35.87446211]
[1644471981025,48.41225906,111.7,111.64,13.4608]
[1644471983829,48.66225906,111.7,111.64,13.4608]
[1644471985935,47.66225906,111.7,111.64,13.4608]
[1644471986738,47.66225906,111.7,111.64,0.024]
[1644471986934,47.66225906,111.7,111.63,13.4622]
[1644471987934,48.93976204,111.7,111.63,13.4622]
[1644471988335,47.66225906,111.7,111.63,13.4622]
[1644471988835,48.93976204,111.7,111.63,13.4622]
[1644471989534,47.66225906,111.7,111.63,13.4622]
[1644471989937,48.93976204,111.7,111.63,13.4622]
[1644471990337,48.93976204,111.7,111.63,0.024]
[1644471990935,23.9969,111.69,111.63,0.024]
[1644471991137,59.97996391,111.68,111.63,0.024]
[1644471991337,59.97996391,111.68,111.63,13.4625]
[1644471991538,59.97996391,111.68,111.63,0.024]
[1644471992241,13.4439,111.65,111.6,0.024]
[1644471992441,43.30526892,111.64,111.6,0.024]
[1644471992637,68.27276892,111.64,111.57,0.024]
[1644471993040,68.27276892,111.64,111.55,47.21384125]
[1644471993239,68.27276892,111.64,111.56,0.024]
[1644471993849,81.71816892,111.64,111.57,13.445]
[1644471994038,81.71816892,111.64,111.57,13.469]
[1644471994438,81.71816892,111.64,111.57,0.024]
[1644471995044,81.96816892,111.64,111.57,0.024]
[1644471998642,81.71816892,111.64,111.57,0.024]
[1644472002348,81.96816892,111.64,111.57,0.024]
[1644472006354,13.4504,111.62,111.57,0.024]
[1644472006556,24.7438,111.61,111.55,0.024]
[1644472006754,24.7438,111.61,111.57,0.024]
[1644472006953,24.7438,111.61,111.53,0.024]
[1644472007154,38.71290497,111.6,111.53,0.024]
[1644472007756,52.16360497,111.6,111.53,0.024]
[1644472008256,52.16360497,111.6,111.52,0.024]
[1644472008657,2.2512023,111.59,111.52,0.024]
[1644472008867,13.4546,111.56,111.49,37.3186]
[1644472009058,42.08627424,111.55,111.5,0.024]
[1644472010460,42.33627424,111.55,111.5,0.024]
[1644472016095,23.0473,111.57,111.5,13.4771]
[1644472016287,23.0473,111.57,111.51,0.024]
[1644472017088,45.33785459,111.56,111.51,13.4755]
[1644472018589,23.0473,111.57,111.51,13.4755]
[1644472019191,23.0473,111.57,111.51,13.7255]
[1644472019592,36.64957575,111.56,111.51,13.7255]
[1644472019992,36.64957575,111.56,111.51,13.4755]
[1644472020292,23.0473,111.57,111.51,13.4755]
[1644472020492,11.941254,111.56,111.51,13.4755]
[1644472021092,12.191254,111.56,111.51,13.4755]
[1644472021293,0.25,111.56,111.51,13.4755]
[1644472021696,65.00225228,111.57,111.51,13.4755]
[1644472021893,11.941254,111.56,111.51,13.4755]
[1644472022692,23.3417,111.6,111.51,13.7255]
[1644472022893,47.2638,111.6,111.52,24.4639]
[1644472023096,23.9221,111.6,111.54,13.4482]
[1644472023300,1.27750298,111.62,111.54,13.7222]
[1644472023495,4.692523,111.61,111.54,13.4722]
[1644472023696,38.51911404,111.6,111.54,13.7222]
[1644472023896,38.51911404,111.6,111.54,13.4722]
[1644472024701,38.76911404,111.6,111.54,13.4722]
[1644472028702,38.76911404,111.6,111.54,13.7222]
[1644472030704,25.445158,111.59,111.54,13.7222]
[1644472030907,48.63964086,111.58,111.54,13.7222]
[1644472031107,25.445158,111.59,111.55,19.4474]
[1644472031327,41.525099,111.61,111.55,19.4474]
[1644472031526,28.076999,111.6,111.56,0.024]
[1644472031726,28.076999,111.6,111.55,19.4714]
[1644472031926,28.076999,111.62,111.55,19.4714]
[1644472032127,43.68960529,111.61,111.56,0.024]
[1644472032327,43.68960529,111.61,111.55,19.4474]
[1644472032328,28.076999,111.6,111.55,19.4714]
[1644472032826,28.076999,111.6,111.55,13.4714]
[1644472033026,28.076999,111.6,111.55,13.4474]
[1644472034726,47.81058948,111.59,111.55,13.4474]
[1644472037530,47.81058948,111.59,111.54,13.4726]
[1644472037729,47.81058948,111.59,111.54,13.4486]
[1644472037931,47.81058948,111.59,111.54,13.4726]
[1644472038330,48.06058948,111.59,111.54,13.4726]
[1644472038931,48.06058948,111.59,111.54,0.024]
[1644472039132,48.06058948,111.59,111.53,13.474]
[1644472039335,14.259145,111.58,111.53,0.024]
[1644472039533,14.259145,111.58,111.52,0.024]
[1644472039734,44.38132528,111.57,111.53,0.024]
[1644472040036,44.38132528,111.57,111.52,0.024]
[1644472040835,19.176138,111.56,111.52,0.024]
[1644472041035,42.996238,111.56,111.5,0.024]
[1644472041239,23.8201,111.56,111.5,0.024]
[1644472041735,42.40981591,111.55,111.5,13.4777]
[1644472042538,42.40981591,111.55,111.5,0.024]
[1644472042943,53.607176,111.54,111.48,13.4799]
[1644472043140,13.4568,111.54,111.49,0.024]
[1644472043343,14.04248,111.53,111.49,0.024]
[1644472043644,38.44247693,111.52,111.48,0.024]
[1644472044041,38.44247693,111.52,111.45,0.024]
[1644472044252,38.44247693,111.52,111.45,13.4834]
[1644472044442,38.44247693,111.52,111.46,22.45851751]
[1644472044643,22.8723,111.55,111.46,24.24090556]
[1644472044843,22.8723,111.55,111.47,0.024]
[1644472045043,23.1223,111.55,111.47,0.024]
[1644472045243,22.8723,111.55,111.47,0.024]
[1644472045846,13.4566,111.54,111.47,13.4799]
[1644472046045,22.8723,111.55,111.48,0.024]
[1644472046246,36.80865728,111.54,111.47,12.484]
[1644472046449,36.80865728,111.54,111.48,0.024]
[1644472046648,0.25,111.54,111.48,0.024]
[1644472046846,0.25,111.54,111.48,20.26638805]
[1644472047048,23.8201,111.56,111.48,20.26638805]
[1644472047247,24.0701,111.56,111.49,0.024]
[1644472047451,24.0701,111.56,111.51,13.4521]
[1644472047650,64.18007216,111.56,111.51,13.4761]
[1644472047853,63.93007216,111.56,111.51,13.4761]
[1644472049351,64.18007216,111.56,111.51,13.4761]
[1644472052752,64.18007216,111.56,111.51,0.024]
[1644472052951,64.18007216,111.56,111.5,13.4533]
[1644472053151,64.18007216,111.56,111.5,13.4773]
[1644472054853,77.63397216,111.56,111.5,13.4773]
[1644472055252,64.18007216,111.56,111.5,13.4773]
[1644472059056,11.845174,111.55,111.5,0.024]
[1644472060058,44.30958653,111.54,111.5,0.024]
[1644472061060,44.55958653,111.54,111.5,0.024]
[1644472061262,31.28289,111.53,111.5,0.024]
[1644472061461,6.06219997,111.52,111.47,0.024]
[1644472062263,62.60459697,111.51,111.45,0.024]
[1644472062562,76.06469697,111.51,111.45,13.4592]
[1644472062763,76.06469697,111.51,111.45,13.4832]
[1644472065393,62.60459697,111.51,111.45,13.7332]
[1644472067695,62.60459697,111.51,111.45,13.4832]
[1644472068096,62.85459697,111.51,111.45,13.4832]
[1644472069397,62.85459697,111.51,111.45,13.7332]
[1644472070202,62.85459697,111.51,111.45,15.51558805]
[1644472070401,62.60459697,111.51,111.45,15.51558805]
[1644472070605,62.60459697,111.51,111.45,13.4832]
[1644472070802,62.60459697,111.51,111.45,13.7332]
[1644472071002,62.60459697,111.51,111.45,13.4832]
[1644472071703,62.85459697,111.51,111.45,13.4832]
[1644472071902,62.85459697,111.51,111.45,0.024]
[1644472072102,62.85459697,111.51,111.44,13.4845]
[1644472072302,62.85459697,111.51,111.45,0.024]
[1644472072903,76.31449697,111.51,111.45,0.024]
[1644472073103,76.31449697,111.51,111.44,0.024]